Department Family,Entity,Date Paid,Expense Type,Expense Area,Supplier Name,Transaction Reference,    Total    
Department of Health,Chelsea & Westminster NHS Foundation Trust,01/02/2024,Refurbishment,Capital Expenditure,Jca Engineering Limited,INV-N10177,"483,631.48"
Department of Health,Chelsea & Westminster NHS Foundation Trust,01/02/2024,Building Expenditure,New Stroke Ward,Logan Construction (S.E) Ltd,5967,"352,170.00"
Department of Health,Chelsea & Westminster NHS Foundation Trust,01/02/2024,Refurbishment,Capital Expenditure,Logan Construction (S.E) Ltd,5969,"299,988.00"
Department of Health,Chelsea & Westminster NHS Foundation Trust,01/02/2024,Computer Maintenance Contracts,Applications Team,Bighand Ltd,INV-BLTD-021384,"27,954.62"
Department of Health,Chelsea & Westminster NHS Foundation Trust,01/02/2024,Drugs,Hiv Drugs - Herts,West Hertfordshire Hospitals Nhs Trust,278444,"388,761.89"
Department of Health,Chelsea & Westminster NHS Foundation Trust,01/02/2024,Electricty,Trust-wide,Edf Energy 1 Ltd,17796366,"616,407.86"
Department of Health,Chelsea & Westminster NHS Foundation Trust,01/02/2024,General Maintenance Contracts,Epr Cross Site Project,Oracle Corporation Uk Limited,460133813,"60,718.10"
Department of Health,Chelsea & Westminster NHS Foundation Trust,01/02/2024,I.T. Expenditure,Trust-wide,Imperial College Healthcare Nhs Trust,H0320561,"210,062.63"
Department of Health,Chelsea & Westminster NHS Foundation Trust,01/02/2024,M.S.S.E. - Other,Chelsea Site,The Doctors Laboratory,SI1672558,"96,427.16"
Department of Health,Chelsea & Westminster NHS Foundation Trust,01/02/2024,Rent Rates & Service Charge,Mass Vaccination Roving,Quality Trusted Solutions,64780676,"30,834.33"
Department of Health,Chelsea & Westminster NHS Foundation Trust,01/02/2024,Rent Rates & Service Charge,Mass Vaccination Roving,Quality Trusted Solutions,64780677,"100,610.40"
Department of Health,Chelsea & Westminster NHS Foundation Trust,01/02/2024,Services From Non Nhs Org,Urgent Treatment Centre,London Central & West Unsheduled Care Collabo,5486,"506,157.42"
Department of Health,Chelsea & Westminster NHS Foundation Trust,01/02/2024,Drugs,Chelsea Pharmacy,Bayer Plc,824C541622,"36,498.24"
Department of Health,Chelsea & Westminster NHS Foundation Trust,01/02/2024,Drugs,Chelsea Pharmacy,Csl Behring Uk Ltd,994063418,"49,432.50"
Department of Health,Chelsea & Westminster NHS Foundation Trust,01/02/2024,Drugs,West Middlesex Pharmacy,Alloga Uk Limited,SIN200095440,"36,000.00"
Department of Health,Chelsea & Westminster NHS Foundation Trust,01/02/2024,Drugs,West Middlesex Pharmacy,Csl Behring Uk Ltd,994063536,"29,659.50"
Department of Health,Chelsea & Westminster NHS Foundation Trust,01/02/2024,Clinical Supplies,Divisional Areas,Nhs Supply Chain Roarp (101),1124267562,"76,699.71"
Department of Health,Chelsea & Westminster NHS Foundation Trust,01/02/2024,Clinical Supplies,Divisional Areas,Nhs Supply Chain Roarp (101),1124268264,"99,542.41"
Department of Health,Chelsea & Westminster NHS Foundation Trust,01/02/2024,Clinical Supplies,Divisional Areas,Nhs Supply Chain Roarp (101),1124271783,"57,993.47"
Department of Health,Chelsea & Westminster NHS Foundation Trust,01/02/2024,Clinical Supplies,Divisional Areas,Nhs Supply Chain Roarp (101),1124271822,"50,192.18"
Department of Health,Chelsea & Westminster NHS Foundation Trust,01/02/2024,It Shared Service,Ict - Shared Services Project,Charterhouse Voice & Data Ltd,SECINV000001785,"114,000.00"
Department of Health,Chelsea & Westminster NHS Foundation Trust,01/02/2024,Library Service,Trust-wide,Imperial College London,20197140,"26,444.62"
Department of Health,Chelsea & Westminster NHS Foundation Trust,01/02/2024,Library Service,Trust-wide,Imperial College London,20195327,"26,444.62"
Department of Health,Chelsea & Westminster NHS Foundation Trust,01/02/2024,Library Service,Trust-wide,Imperial College London,20195325,"26,444.62"
Department of Health,Chelsea & Westminster NHS Foundation Trust,01/02/2024,General Maintenance Contracts,Trust-wide,Jca Engineering Limited,INV-N10176,"306,297.71"
Department of Health,Chelsea & Westminster NHS Foundation Trust,06/02/2024,Computer Maintenance Contracts,Radiology,Sectra Ltd,SIN006181,"109,997.10"
Department of Health,Chelsea & Westminster NHS Foundation Trust,06/02/2024,General Computer Software,Radiology Department,Sectra Ltd,SIN006182,"70,005.60"
Department of Health,Chelsea & Westminster NHS Foundation Trust,06/02/2024,General Maintenance Contracts,Epr Cross Site Project,Cerner Limited,102264904,"301,320.00"
Department of Health,Chelsea & Westminster NHS Foundation Trust,06/02/2024,General Maintenance Contracts,Epr Cross Site Project,Cerner Limited,102266665,"-259,200.00"
Department of Health,Chelsea & Westminster NHS Foundation Trust,06/02/2024,I.T. Expenditure,Trust-wide,Charterhouse Voice & Data Ltd,V00000000002775,"259,687.69"
Department of Health,Chelsea & Westminster NHS Foundation Trust,06/02/2024,M.S.S.E. - Routine Purchases,Radiology:- Other Scanning,Alliance Medical Limited,AML-225932,"70,560.00"
Department of Health,Chelsea & Westminster NHS Foundation Trust,06/02/2024,Membership Fee,Chief Executives Office,Imperial College London,20197011,"69,727.77"
Department of Health,Chelsea & Westminster NHS Foundation Trust,06/02/2024,Services From Non Nhs Org,Urgent Treatment Centre,London Central & West Unsheduled Care Collabo,5461,"49,353.77"
Department of Health,Chelsea & Westminster NHS Foundation Trust,06/02/2024,Staff Flow Central Account,Trust-wide,Medacs Healthcare Limited,730-159328,"30,910.84"
Department of Health,Chelsea & Westminster NHS Foundation Trust,06/02/2024,Drugs,Chelsea Pharmacy,Alliance Healthcare (Distribution ) Ltd,A41753186,"26,901.02"
Department of Health,Chelsea & Westminster NHS Foundation Trust,06/02/2024,Drugs,Chelsea Pharmacy,Roche Products Ltd,1322315582,"39,816.00"
Department of Health,Chelsea & Westminster NHS Foundation Trust,06/02/2024,Drugs,Chelsea Pharmacy,Alloga Uk Limited,SIN200096585,"36,000.00"
Department of Health,Chelsea & Westminster NHS Foundation Trust,06/02/2024,Water,Estate Management Department,Castle Water Ltd,TE00499337,"326,587.29"
Department of Health,Chelsea & Westminster NHS Foundation Trust,06/02/2024,Water,Estate Management Department,Castle Water Ltd,TE00445554A,"-46,547.52"
Department of Health,Chelsea & Westminster NHS Foundation Trust,06/02/2024,Water,Estate Management Department,Castle Water Ltd,FINAL SETTLEMENTB,"-65,254.57"
Department of Health,Chelsea & Westminster NHS Foundation Trust,06/02/2024,Managed Service Contract,Cardiac Cath Lab,Medtronic Limited,1205767672,"132,910.14"
Department of Health,Chelsea & Westminster NHS Foundation Trust,06/02/2024,Recharges � Pay and non-pay costs,Clarhc Office,Imperial College London,10203932,"328,837.94"
Department of Health,Chelsea & Westminster NHS Foundation Trust,06/02/2024,Recharges � Pay and non-pay costs,Clarhc Office,Imperial College London,10201781,"100,000.00"
Department of Health,Chelsea & Westminster NHS Foundation Trust,06/02/2024,Imperial Payroll Serv Charge,Director Of Finance,Imperial College Healthcare Nhs Trust,H0324253,"136,439.00"
Department of Health,Chelsea & Westminster NHS Foundation Trust,06/02/2024,Imperial Payroll Serv Charge,Director Of Finance,Imperial College Healthcare Nhs Trust,H0324254,"136,439.00"
Department of Health,Chelsea & Westminster NHS Foundation Trust,08/02/2024,Agency Nurse - Band 5,Chelsea Site,Hcrg - Workforce Solutions Ltd,HWF000063,"550,191.25"
Department of Health,Chelsea & Westminster NHS Foundation Trust,08/02/2024,Soft Services,Trust-wide,Bywest Ltd,INV000176,"63,606.24"
Department of Health,Chelsea & Westminster NHS Foundation Trust,08/02/2024,Building Expenditure,Burns Unit,Jca Engineering Limited,INV38174,"40,327.50"
Department of Health,Chelsea & Westminster NHS Foundation Trust,08/02/2024,General Maintenance Contracts,Trust-wide,Jca Engineering Limited,INV-N10178,"490,339.20"
Department of Health,Chelsea & Westminster NHS Foundation Trust,08/02/2024,I.T. Expenditure,Trust-wide,Softcat Ltd,INVUK1148273,"29,520.00"
Department of Health,Chelsea & Westminster NHS Foundation Trust,08/02/2024,Recruitment Expenses,Director Of Nursing,Medox Paramedical Ltd T/ S  Drake Medox,305222,"50,400.00"
Department of Health,Chelsea & Westminster NHS Foundation Trust,08/02/2024,Rent Rates & Service Charge,Mass Vaccination Roving,Quality Trusted Solutions,64780679,"119,928.00"
Department of Health,Chelsea & Westminster NHS Foundation Trust,08/02/2024,Services From - Foundation Tru,Paediatric Management Cw,Central And North West London Nhs Ft,53513011,"35,198.66"
Department of Health,Chelsea & Westminster NHS Foundation Trust,08/02/2024,Services From - Foundation Tru,Paediatric Management Cw,Central And North West London Nhs Ft,53513024,"35,198.66"
Department of Health,Chelsea & Westminster NHS Foundation Trust,08/02/2024,Services From - Foundation Tru,Paediatric Management Cw,Central And North West London Nhs Ft,53513028,"25,303.41"
Department of Health,Chelsea & Westminster NHS Foundation Trust,08/02/2024,Services From - Foundation Tru,Paediatric Management Cw,Central And North West London Nhs Ft,53513018,"25,303.41"
Department of Health,Chelsea & Westminster NHS Foundation Trust,08/02/2024,Services From - Foundation Tru,Paediatric Management Cw,Central And North West London Nhs Ft,53513012,"25,303.41"
Department of Health,Chelsea & Westminster NHS Foundation Trust,08/02/2024,Sexual Health SLA,Hiv - Herts,Central And North West London Nhs Ft,53513016,"35,198.66"
Department of Health,Chelsea & Westminster NHS Foundation Trust,08/02/2024,Drugs,Chelsea Pharmacy,Mawdsley- Brooks & Co Ltd,101715,"25,414.20"
Department of Health,Chelsea & Westminster NHS Foundation Trust,08/02/2024,Drugs,West Middlesex Pharmacy,Alloga Uk Limited,SIN200101116,"45,000.00"
Department of Health,Chelsea & Westminster NHS Foundation Trust,08/02/2024,Clinical Supplies,Divisional Areas,Nhs Supply Chain Roarp (101),1124273485,"97,678.36"
Department of Health,Chelsea & Westminster NHS Foundation Trust,08/02/2024,Clinical Supplies,Divisional Areas,Nhs Supply Chain Roarp (101),1124273554,"150,895.03"
Department of Health,Chelsea & Westminster NHS Foundation Trust,08/02/2024,Clinical Supplies,Divisional Areas,Nhs Supply Chain Roarp (101),1124278878,"32,491.72"
Department of Health,Chelsea & Westminster NHS Foundation Trust,08/02/2024,Clinical Supplies,Divisional Areas,Nhs Supply Chain Roarp (101),1124278918,"132,437.27"
Department of Health,Chelsea & Westminster NHS Foundation Trust,08/02/2024,Soft Services,Trust-wide,Bywest Ltd,INV000179,"561,422.48"
Department of Health,Chelsea & Westminster NHS Foundation Trust,08/02/2024,Postage,Clin Admin Management Team,Bt Payment Services Ltd,73936770M04001,"40,365.10"
Department of Health,Chelsea & Westminster NHS Foundation Trust,08/02/2024,Intangible Expenditure,Cerner Project,Imperial College Healthcare Nhs Trust,H0322845,"50,274.53"
Department of Health,Chelsea & Westminster NHS Foundation Trust,08/02/2024,Intangible Expenditure,Cerner Project,Imperial College Healthcare Nhs Trust,H0322846,"79,333.51"
Department of Health,Chelsea & Westminster NHS Foundation Trust,08/02/2024,Intangible Expenditure,Cerner Project,Imperial College Healthcare Nhs Trust,H0322847,"48,286.10"
Department of Health,Chelsea & Westminster NHS Foundation Trust,08/02/2024,Gas,Trust-wide,Total Energies Gas & Power Limited,327164623/24,"264,120.11"
Department of Health,Chelsea & Westminster NHS Foundation Trust,08/02/2024,Gas,Trust-wide,Total Energies Gas & Power Limited,313714220/23CR,"-75,149.71"
Department of Health,Chelsea & Westminster NHS Foundation Trust,08/02/2024,Transport ,Trust-wide,Hats Group Ltd,226645,"170,873.16"
Department of Health,Chelsea & Westminster NHS Foundation Trust,08/02/2024,Transport ,Trust-wide,Hats Group Ltd,226646,"36,745.52"
Department of Health,Chelsea & Westminster NHS Foundation Trust,08/02/2024,Transport ,Trust-wide,Hats Group Ltd,226647,"70,352.16"
Department of Health,Chelsea & Westminster NHS Foundation Trust,08/02/2024,Recharges � Pay and non-pay costs,Clarhc Office,Imperial College London,10203977,"62,414.36"
Department of Health,Chelsea & Westminster NHS Foundation Trust,08/02/2024,Telephones - Private Circuits,Trust-wide,Imperial College Healthcare Nhs Trust,H0323204,"60,519.36"
Department of Health,Chelsea & Westminster NHS Foundation Trust,08/02/2024,Recharges � Pay and non-pay costs,I.T Management,Imperial College Healthcare Nhs Trust,H0322836,"76,610.89"
Department of Health,Chelsea & Westminster NHS Foundation Trust,08/02/2024,Recharges � Pay and non-pay costs,I.T Management,Imperial College Healthcare Nhs Trust,H0322837,"32,644.49"
Department of Health,Chelsea & Westminster NHS Foundation Trust,08/02/2024,M.R.I. Scans,Radiology:- Other Scanning,Alliance Medical Limited,AML-225955,"73,227.67"
Department of Health,Chelsea & Westminster NHS Foundation Trust,13/02/2024,Refurbishment,Procurement,Logan Construction (S.E) Ltd,5973,"234,117.00"
Department of Health,Chelsea & Westminster NHS Foundation Trust,13/02/2024,General Computer Software,E-Rostering,Locum Tap Ltd T/A Patchwork Health,INV-1196,"30,865.20"
Department of Health,Chelsea & Westminster NHS Foundation Trust,13/02/2024,General Computer Software,E-Rostering,Locum Tap Ltd T/A Patchwork Health,INV-1228,"32,917.20"
Department of Health,Chelsea & Westminster NHS Foundation Trust,13/02/2024,M.S.S.E. - Routine Purchases,Respiratory Management,Baywater Healthcare Uk Ltd,241885,"29,941.67"
Department of Health,Chelsea & Westminster NHS Foundation Trust,13/02/2024,M.S.S.E. - Routine Purchases,Trauma & Orthopaedics,Opcare Ltd,OP-SI-052455,"40,720.26"
Department of Health,Chelsea & Westminster NHS Foundation Trust,13/02/2024,Drugs,Chelsea Pharmacy,Alliance Healthcare (Distribution ) Ltd,A41G55366,"34,946.35"
Department of Health,Chelsea & Westminster NHS Foundation Trust,13/02/2024,Drugs,Chelsea Pharmacy,Alliance Healthcare (Distribution ) Ltd,A41G55373,32.74
Department of Health,Chelsea & Westminster NHS Foundation Trust,13/02/2024,Drugs,Chelsea Pharmacy,Alliance Healthcare (Distribution ) Ltd,A41G5536,"34,946.35"
Department of Health,Chelsea & Westminster NHS Foundation Trust,13/02/2024,Intangible Expenditure,Medical Licenses for Erostering and Patchwork Software Integration,Softcat Ltd,INVUK1156298,"58,350.00"
Department of Health,Chelsea & Westminster NHS Foundation Trust,13/02/2024,Specialty Registrar Ft (Str1),Hee Income,Royal Free London Nhs Foundation Trust,I0224744,"192,497.28"
Department of Health,Chelsea & Westminster NHS Foundation Trust,15/02/2024,Agency Nurse - Band 5,Chelsea Site,Hcrg - Workforce Solutions Ltd,HWF000068,"62,963.32"
Department of Health,Chelsea & Westminster NHS Foundation Trust,15/02/2024,Drugs,Chelsea Pharmacy,Bayer Plc,824C545416,"36,498.24"
Department of Health,Chelsea & Westminster NHS Foundation Trust,15/02/2024,Drugs,Chelsea Pharmacy,Gilead Sciences Ltd,4410264772,"38,021.64"
Department of Health,Chelsea & Westminster NHS Foundation Trust,15/02/2024,Clinical Supplies,Divisional Areas,Nhs Supply Chain Roarp (101),1124282589,"27,523.26"
Department of Health,Chelsea & Westminster NHS Foundation Trust,15/02/2024,Clinical Supplies,Divisional Areas,Nhs Supply Chain Roarp (101),1124282629,"77,171.26"
Department of Health,Chelsea & Westminster NHS Foundation Trust,15/02/2024,Clinical Supplies,Divisional Areas,Nhs Supply Chain Roarp (101),1124286030,"92,976.94"
Department of Health,Chelsea & Westminster NHS Foundation Trust,15/02/2024,Clinical Supplies,Divisional Areas,Nhs Supply Chain Roarp (101),1124286216,"147,877.69"
Department of Health,Chelsea & Westminster NHS Foundation Trust,15/02/2024,Nw London Pathology Contract,Trust-wide,North West London Pathology,H0323448,"-328,070.00"
Department of Health,Chelsea & Westminster NHS Foundation Trust,15/02/2024,Nw London Pathology Contract,Trust-wide,North West London Pathology,H0323455,"2,695,144.00"
Department of Health,Chelsea & Westminster NHS Foundation Trust,15/02/2024,Nw London Pathology Contract,Trust-wide,North West London Pathology,H0323456,"31,144.00"
Department of Health,Chelsea & Westminster NHS Foundation Trust,15/02/2024,Sterile Services Contract,Sterile Services Dept,Ihss Limited,IHSN103178,"67,333.26"
Department of Health,Chelsea & Westminster NHS Foundation Trust,15/02/2024,Sterile Services Contract,Sterile Services Dept,Ihss Limited,IHSN103389,"67,500.36"
Department of Health,Chelsea & Westminster NHS Foundation Trust,15/02/2024,Sterile Services Contract,Sterile Services Dept,Ihss Limited,IHSN103297,"75,922.76"
Department of Health,Chelsea & Westminster NHS Foundation Trust,19/02/2024,Drugs,Chelsea Pharmacy,Cw Medicines Ltd,N0057766,"1,233,215.93"
Department of Health,Chelsea & Westminster NHS Foundation Trust,19/02/2024,Dispensing Fee,Pharmacy Outpatients,Cw Medicines Ltd,N0057299,"97,497.69"
Department of Health,Chelsea & Westminster NHS Foundation Trust,20/02/2024,Soft Services,Trust-wide,Bywest Ltd,INV000180,"77,683.87"
Department of Health,Chelsea & Westminster NHS Foundation Trust,20/02/2024,Lift Refurbishment,Chelsea Site,Guideline Lift Services Ltd,C8005724,"86,684.58"
Department of Health,Chelsea & Westminster NHS Foundation Trust,20/02/2024,Building Expenditure,New Stroke Ward,Logan Construction (S.E) Ltd,5976,"330,240.00"
Department of Health,Chelsea & Westminster NHS Foundation Trust,20/02/2024,Building Expenditure,Dean Street,Logan Construction (S.E) Ltd,5980,"349,296.00"
Department of Health,Chelsea & Westminster NHS Foundation Trust,20/02/2024,General Maintenance Contracts,Main Theatres,Nhs Supply Chain Maintenance (201),2124007587,"36,000.00"
Department of Health,Chelsea & Westminster NHS Foundation Trust,20/02/2024,M.S.S.E. - Routine Purchases,Endoscopy Wm,Wassenburg Ltd,150-S4029672,"63,817.52"
Department of Health,Chelsea & Westminster NHS Foundation Trust,20/02/2024,Drugs,Chelsea Pharmacy,Aah Pharmaceuticals Ltd,30099314H,"-31,168.80"
Department of Health,Chelsea & Westminster NHS Foundation Trust,20/02/2024,Drugs,Chelsea Pharmacy,Alliance Healthcare (Distribution ) Ltd,A41N53658,"34,591.26"
Department of Health,Chelsea & Westminster NHS Foundation Trust,20/02/2024,Archiving,Medical Records Cw,Iron Mountain (Uk) Ltd,ZY96199,"27,992.34"
Department of Health,Chelsea & Westminster NHS Foundation Trust,20/02/2024,Archiving,Medical Records Cw,Iron Mountain (Uk) Ltd,RBK6304,"27,978.02"
Department of Health,Chelsea & Westminster NHS Foundation Trust,20/02/2024,Archiving,Medical Records Cw,Iron Mountain (Uk) Ltd,RCB8672,"27,802.88"
Department of Health,Chelsea & Westminster NHS Foundation Trust,22/02/2024,Services From - Foundation Tru,Nhs Blood Products,Nhs Blood Transplant,7021303,"66,397.67"
Department of Health,Chelsea & Westminster NHS Foundation Trust,22/02/2024,Services From - Foundation Tru,Nhs Blood Products,Nhs Blood Transplant,7021291,"74,041.55"
Department of Health,Chelsea & Westminster NHS Foundation Trust,22/02/2024,Staff Flow Central Account,Trust-wide,Liaison Financial Services Ltd,46/2023-24,"100,956.40"
Department of Health,Chelsea & Westminster NHS Foundation Trust,22/02/2024,Staff Flow Central Account,Trust-wide,Liaison Financial Services Ltd,45/2023-24,"99,616.28"
Department of Health,Chelsea & Westminster NHS Foundation Trust,22/02/2024,Staff Flow Central Account,Trust-wide,Liaison Financial Services Ltd,44/2023-24,"148,557.63"
Department of Health,Chelsea & Westminster NHS Foundation Trust,22/02/2024,Staff Flow Central Account,Trust-wide,Liaison Financial Services Ltd,47/2023-24,"76,574.39"
Department of Health,Chelsea & Westminster NHS Foundation Trust,23/02/2024,Soft Services,Trust-wide,Iss Mediclean Limited,SI3572203,"29,605.26"
Department of Health,Chelsea & Westminster NHS Foundation Trust,23/02/2024,Building Expenditure,West Middlessex,Portakabin Limited,901020387,"29,453.11"
Department of Health,Chelsea & Westminster NHS Foundation Trust,23/02/2024,Professional Fees,Ambulatory Diagnostic Centre,Stace Llp,INV027993,"210,000.00"
Department of Health,Chelsea & Westminster NHS Foundation Trust,23/02/2024,Building Expenditure,Treatment Centre,Troup Bywaters And Anders,24972,"48,000.00"
Department of Health,Chelsea & Westminster NHS Foundation Trust,23/02/2024,Computer Maintenance Contracts,Applications Team,Specialist Computer Centres Plc,OP/N522483,"135,030.38"
Department of Health,Chelsea & Westminster NHS Foundation Trust,23/02/2024,Electricty,Trust-wide,Edf Energy 1 Ltd,18099288,"640,793.82"
Department of Health,Chelsea & Westminster NHS Foundation Trust,23/02/2024,General Computer Software,I.T Management,Exponential-E Limited,EX-SI1001511,"43,344.00"
Department of Health,Chelsea & Westminster NHS Foundation Trust,23/02/2024,General Computer Software,E-Rostering,Locum Tap Ltd T/A Patchwork Health,INV-1296,"37,056.00"
Department of Health,Chelsea & Westminster NHS Foundation Trust,23/02/2024,General Maintenance Contracts,Radiology,Nhs Supply Chain Maintenance (201),2124007771,"92,580.34"
Department of Health,Chelsea & Westminster NHS Foundation Trust,23/02/2024,M.S.S.E. - Routine Purchases,Respiratory Management,Baywater Healthcare Uk Ltd,242694,"30,260.99"
Department of Health,Chelsea & Westminster NHS Foundation Trust,23/02/2024,M.S.S.E. - Routine Purchases,Radiology:- Other Scanning,Alliance Medical Limited,AML-226809,"232,617.72"
Department of Health,Chelsea & Westminster NHS Foundation Trust,23/02/2024,Soft Services,Trust-wide,Bywest Ltd,INV000182,"2,100,316.61"
Department of Health,Chelsea & Westminster NHS Foundation Trust,23/02/2024,Services From Non Nhs Org,Urgent Treatment Centre,London Central & West Unsheduled Care Collabo,5518,"506,157.42"
Department of Health,Chelsea & Westminster NHS Foundation Trust,23/02/2024,Drugs,Chelsea Pharmacy,Alloga Uk Limited,SIN200112963,"36,000.00"
Department of Health,Chelsea & Westminster NHS Foundation Trust,23/02/2024,Drugs,Chelsea Pharmacy,Gilead Sciences Ltd,4410265510,"69,602.93"
Department of Health,Chelsea & Westminster NHS Foundation Trust,23/02/2024,Drugs,West Middlesex Pharmacy,Janssen-Cilag Ltd,,"36,806.40"
Department of Health,Chelsea & Westminster NHS Foundation Trust,23/02/2024,Drugs,West Middlesex Pharmacy,Roche Products Ltd,1322318734,"71,844.67"
Department of Health,Chelsea & Westminster NHS Foundation Trust,23/02/2024,Drugs,West Middlesex Pharmacy,Roche Products Ltd,1322319298,"66,513.12"
Department of Health,Chelsea & Westminster NHS Foundation Trust,23/02/2024,Clinical Supplies,Divisional Areas,Nhs Supply Chain Roarp (101),1124293884,"35,880.55"
Department of Health,Chelsea & Westminster NHS Foundation Trust,23/02/2024,Clinical Supplies,Divisional Areas,Nhs Supply Chain Roarp (101),1124288013,"109,394.31"
Department of Health,Chelsea & Westminster NHS Foundation Trust,23/02/2024,Clinical Supplies,Divisional Areas,Nhs Supply Chain Roarp (101),1124289998,"129,978.32"
Department of Health,Chelsea & Westminster NHS Foundation Trust,23/02/2024,Clinical Supplies,Divisional Areas,Nhs Supply Chain Roarp (101),1124293913,"57,283.51"
Department of Health,Chelsea & Westminster NHS Foundation Trust,23/02/2024,Soft Services,Trust-wide,Iss Mediclean Limited,SI3573533,"64,064.16"
Department of Health,Chelsea & Westminster NHS Foundation Trust,23/02/2024,Soft Services,Trust-wide,Iss Mediclean Limited,SI3573594,"595,780.75"
Department of Health,Chelsea & Westminster NHS Foundation Trust,23/02/2024,Soft Services,Trust-wide,Iss Mediclean Limited,SI3573593,"792,576.20"
Department of Health,Chelsea & Westminster NHS Foundation Trust,23/02/2024,Soft Services,Trust-wide,Iss Mediclean Limited,SI3573592,"1,271,919.74"
Department of Health,Chelsea & Westminster NHS Foundation Trust,23/02/2024,Translation Services,Trust-wide,Da Languages Ltd,I0342162,"29,761.19"
Department of Health,Chelsea & Westminster NHS Foundation Trust,23/02/2024,Hire Of Beds,Director Of Nursing & Patient ,Arjo Uk Ltd,3394491024,"62,959.30"
Department of Health,Chelsea & Westminster NHS Foundation Trust,23/02/2024,Archiving,Medical Records Cw,Iron Mountain (Uk) Ltd,RCY1856,"27,816.20"
Department of Health,Chelsea & Westminster NHS Foundation Trust,23/02/2024,Other Consultancy,Procurement,Lifecycle Managment Group Limited,12408,"56,200.16"
Department of Health,Chelsea & Westminster NHS Foundation Trust,23/02/2024,Postage,Clin Admin Management Team,Synertec Ltd,QS371270,"35,885.04"
Department of Health,Chelsea & Westminster NHS Foundation Trust,23/02/2024,Inpatient and Day Case Activity,Radiology Department,Medica Reporting Ltd (Medica Group),SI109676,"94,790.00"
Department of Health,Chelsea & Westminster NHS Foundation Trust,23/02/2024,Inpatient and Day Case Activity,Radiology Department,Medica Reporting Ltd (Medica Group),SI109641,"79,200.00"
Department of Health,Chelsea & Westminster NHS Foundation Trust,23/02/2024,General Computer Hardware,Radiology,Sectra Ltd,SIN006279,"41,691.60"
Department of Health,Chelsea & Westminster NHS Foundation Trust,23/02/2024,Equipment Expenditure,Clinical Engineering - LG Flr,Intuitive Surgical Ltd,7010315,"187,200.00"
Department of Health,Chelsea & Westminster NHS Foundation Trust,23/02/2024,Neyber Financial Wellbeing Ben,Trust-wide,Salary Finance Ltd,SD FEBRUARY 2024B,"38,242.07"
Department of Health,Chelsea & Westminster NHS Foundation Trust,23/02/2024,Drugs,Chelsea Pharmacy,Cw Medicines Ltd,N0057769,"1,446,153.78"
Department of Health,Chelsea & Westminster NHS Foundation Trust,23/02/2024,Recharges � Pay and non-pay costs,Clarhc Office,Imperial College London,10203976,"62,414.36"
Department of Health,Chelsea & Westminster NHS Foundation Trust,23/02/2024,General Maintenance Contracts,Trust-wide,Jca Engineering Limited,INV-N10179,"212,499.24"
Department of Health,Chelsea & Westminster NHS Foundation Trust,23/02/2024,Soft Services,Trust-wide,Iss Mediclean Limited,SI3573618,"84,232.25"
Department of Health,Chelsea & Westminster NHS Foundation Trust,23/02/2024,X-Ray Equipment Contracts,Radiology Department,Sisk Healthcare Uc/Ta Synapse Medical,S-INV132953,"37,200.00"
Department of Health,Chelsea & Westminster NHS Foundation Trust,23/02/2024,Commercial Rents and Service Charge,34-35 Dean Street,Dalness Estates Ltd,INV-1085,"48,000.00"
Department of Health,Chelsea & Westminster NHS Foundation Trust,23/02/2024,Commercial Rents and Service Charge,34-35 Dean Street,Dalness Estates Ltd,INV-1083,"48,000.00"
Department of Health,Chelsea & Westminster NHS Foundation Trust,23/02/2024,Sterile Services Contract,Sterile Services Dept,Ihss Limited,IHSN103443,"53,387.38"
Department of Health,Chelsea & Westminster NHS Foundation Trust,23/02/2024,Specialty Registrar Ft (Str1),Hee Income,Royal Free London Nhs Foundation Trust,I0225816,"173,015.33"
